bitfinex-derivatives/quotes_BNBF0:USTF0_20251220
["timestamp","ask_amount","ask_price","bid_price","bid_amount"]
[1766245337298,0.87326348,853.82,852.65,1.16267951]
[1766245338395,0.20390167,853.9,852.66,1.16267951]
[1766245338396,0.87326348,853.81,852.66,1.16267951]
[1766245339300,0.87326348,853.79,852.68,1.16267951]
[1766245340399,0.87326348,853.77,852.7,1.16267951]
[1766245340898,0.87326348,853.76,852.69,1.16267951]
[1766245341300,0.20390167,853.9,852.45,0.20390107]
[1766245341301,0.87326348,853.74,852.72,1.16267951]
[1766245342197,0.87326348,853.74,852.57,1.75797786]
[1766245342198,0.87326348,853.71,852.74,1.16267951]
[1766245346104,0.87326348,853.71,852.75,1.16267951]
[1766245347104,0.87326348,853.71,852.74,1.16267951]
[1766245350308,0.87326348,853.72,852.74,1.16267951]
[1766245353212,0.87326348,853.72,852.59,1.75797786]
[1766245353213,0.87326348,853.69,852.71,1.16267951]
[1766245357116,0.87326348,853.7,852.71,1.16267951]
[1766245358118,0.87326348,853.7,852.7,1.16267951]
[1766245369234,0.87326348,853.7,852.71,1.16267951]
[1766245370130,0.87326348,853.69,852.71,1.16267951]
[1766245370636,0.87326348,853.69,852.7,1.16267951]
[1766245371232,0.87326348,853.69,852.71,1.16267951]
[1766245377338,0.87326348,853.68,852.72,1.16267951]
[1766245382043,0.87326348,853.67,852.73,1.16267951]
[1766245385249,0.87326348,853.66,852.74,1.16267951]
[1766245386149,0.87326348,853.65,852.74,1.16267951]
[1766245387052,0.87326348,853.65,852.75,1.16267951]
[1766245393058,0.87326348,853.64,852.75,1.16267951]
[1766245395057,0.87326348,853.64,852.76,1.16267951]
[1766245408165,0.87326348,853.64,852.77,1.16267951]
[1766245409166,0.87326348,853.63,852.77,1.16267951]
[1766245413169,0.87326348,853.62,852.78,1.16267951]
[1766245435289,0.87326348,853.63,852.78,1.16267951]
[1766245446310,0.87326348,853.64,852.78,1.16267951]
[1766245459919,0.87326348,853.67,852.81,1.16267951]
[1766245460417,0.87326348,853.68,852.81,1.16267951]
[1766245462515,0.87326348,853.68,852.65,1.75797786]
[1766245462516,0.87326348,853.68,852.8,1.16267951]
[1766245466422,0.87326348,853.69,852.8,1.16267951]
[1766245470422,0.87326348,853.69,852.79,1.16267951]
[1766245507151,0.87326348,853.69,852.8,1.16267951]
[1766245510153,0.87326348,853.68,852.8,1.16267951]
[1766245514960,1.16882101,853.83,852.8,1.16267951]
[1766245515564,0.20390167,853.9,852.65,1.75797786]
[1766245516065,0.87918282,853.68,852.8,1.17192253]
[1766245516460,0.87918282,853.68,852.81,1.17192253]
[1766245517364,1.17224376,853.83,852.81,1.17192253]
[1766245517365,0.87918282,853.67,852.81,1.17192253]
[1766245519467,0.87918282,853.66,852.82,1.17192253]
[1766245526569,1.17224376,853.82,852.82,1.17192253]
[1766245526770,0.87946188,853.66,852.82,1.17192253]
[1766245589622,1.17224376,853.82,852.82,1.17192253]
[1766245589821,0.87946298,853.66,852.82,1.17192253]
[1766245605927,1.17224376,853.82,852.82,1.17192253]
[1766245606127,0.87946106,853.66,852.82,1.17192253]
[1766245609531,0.87946106,853.66,852.81,1.17192253]
[1766245636454,0.87946106,853.68,852.83,1.17192253]
[1766245639364,0.87946106,853.69,852.83,1.17192253]
[1766245640360,0.87946106,853.69,852.82,1.17192253]
[1766245663787,0.87946106,853.7,852.82,1.17192253]
[1766245664082,0.87946106,853.71,852.83,1.17192253]
[1766245664382,0.87946106,853.72,852.84,1.17192253]
[1766245666384,0.87946106,853.73,852.84,1.17192253]
[1766245671294,0.87946106,853.73,852.83,1.17192253]
[1766245674400,0.87946106,853.75,852.85,1.17192253]
[1766245676398,0.87946106,853.75,852.84,1.17192253]
[1766245685311,0.87946106,853.76,852.84,1.17192253]
[1766245690917,0.87946106,853.77,852.85,1.17192253]
[1766245696625,0.87946106,853.79,852.87,1.17192253]
[1766245700225,0.87946106,853.79,852.86,1.17192253]
[1766245702833,0.87946106,853.83,852.9,1.17192253]
[1766245703329,0.87946106,853.83,852.89,1.17192253]
[1766245704527,0.87946106,853.68,852.78,3.1021415]
[1766245706430,0.87946106,853.69,852.78,3.1021415]
[1766245713335,0.87946106,853.7,852.78,3.1021415]
[1766245715742,1.17224376,853.85,852.78,3.1021415]
[1766245716038,0.87825672,853.7,852.78,3.1021415]
[1766245721450,0.87825672,853.71,852.78,3.1021415]
[1766245726457,0.87825672,853.74,852.78,3.1021415]
[1766245739872,0.87825672,853.76,852.78,3.1021415]
[1766245745078,0.87825672,853.75,852.78,3.1021415]
[1766245745279,0.87825672,853.76,852.78,3.1021415]
[1766245746182,0.87825672,853.75,852.78,3.1021415]
[1766245754289,1.17224376,853.9,852.78,3.1021415]
[1766245754494,0.87814376,853.75,852.78,3.1021415]
[1766245757294,0.87814376,853.74,852.78,3.1021415]
[1766245759296,0.87814376,853.74,852.78,4.27406403]
[1766245762098,0.87814376,853.73,852.78,4.27406403]
[1766245763298,0.87814376,853.73,852.79,1.17192253]
[1766245764401,0.87814376,853.72,852.8,1.17192253]
[1766245765205,0.87814376,853.72,852.81,1.17192253]
[1766245765700,0.87814376,853.75,852.83,1.17192253]
[1766245767107,0.87814376,853.75,852.82,1.17192253]
[1766245769307,0.87814376,853.76,852.83,1.17192253]
[1766245773518,0.87814376,853.77,852.83,1.17192253]
[1766245774120,0.87814376,853.82,852.88,1.17192253]
[1766245774934,0.87814376,853.82,852.87,1.17192253]
[1766245776818,1.17224376,853.98,852.78,3.1021415]
[1766245776819,0.87814376,853.9,852.94,1.17192253]
[1766245777119,0.87814376,853.93,852.95,1.17192253]
[1766245778223,0.87814376,853.94,852.94,1.17192253]
[1766245779133,0.87814376,853.95,852.93,1.17192253]
[1766245781223,0.20386584,854.03,852.92,1.17192253]
[1766245781224,0.87814376,853.96,852.92,1.17192253]
[1766245782127,0.87814376,853.97,852.92,1.17192253]
[1766245783325,0.87814376,853.97,852.91,1.17192253]
[1766245785130,0.87814376,853.98,852.9,1.17192253]
[1766245785327,0.87814376,853.98,852.91,1.17192253]
[1766245786228,0.87814376,853.98,852.9,1.17192253]
[1766245788231,0.87814376,853.99,852.9,1.17192253]
[1766245789131,0.87814376,853.99,852.89,1.17192253]
[1766245792134,0.87814376,854.0,852.89,1.17192253]
[1766245795130,0.87814376,854.0,852.88,1.17192253]
[1766245811148,0.87814376,854.0,852.89,1.17192253]
[1766245813949,0.87814376,853.98,852.87,1.17192253]
[1766245814244,0.87814376,853.97,852.87,1.17192253]
[1766245816046,0.87814376,853.97,852.82,3.04062044]
[1766245816047,0.87814376,853.97,852.88,1.17192253]
[1766245818151,0.87814376,853.96,852.88,1.17192253]
[1766245819052,0.87814376,853.96,852.89,1.17192253]
[1766245821152,0.87814376,853.95,852.89,1.17192253]
[1766245822254,0.87814376,853.95,852.9,1.17192253]
[1766245824356,0.87814376,853.94,852.91,1.17192253]
[1766245826157,0.87814376,853.93,852.92,1.17192253]
[1766245828063,0.87814376,853.92,852.93,1.17192253]
[1766245830168,0.87814376,853.91,852.94,1.17192253]
[1766245831068,0.87814376,853.9,852.94,1.17192253]
[1766245832065,0.87814376,853.9,852.95,1.17192253]
[1766245833273,0.87814376,853.89,852.96,1.17192253]
[1766245834173,0.87814376,853.88,852.97,1.17192253]
[1766245836076,0.87814376,853.87,852.98,1.17192253]
[1766245841682,0.87814376,853.88,852.99,1.17192253]
[1766245846583,0.87814376,853.9,853.01,1.17192253]
[1766245847183,0.87814376,854.01,853.13,1.17192253]
[1766245847389,0.87814376,854.04,853.12,1.17192253]
[1766245848390,0.87814376,854.05,853.11,1.17192253]
[1766245849484,0.87814376,854.06,853.1,1.17192253]
[1766245850289,0.87814376,854.07,853.09,1.17192253]
[1766245851087,0.87814376,854.07,853.1,1.17192253]
[1766245851390,0.87814376,854.08,853.09,1.17192253]
[1766245852387,0.87814376,854.09,853.09,1.17192253]
[1766245853390,0.87814376,854.09,853.08,1.17192253]
[1766245854394,0.87814376,854.1,853.08,1.17192253]
[1766245855394,0.87814376,854.1,853.07,1.17192253]
[1766245857397,0.87814376,854.11,853.07,1.17192253]
[1766245858292,0.87814376,854.11,853.06,1.17192253]
[1766245861397,0.87814376,854.12,853.06,1.17192253]
[1766245863298,0.87814376,854.12,853.05,1.17192253]
[1766245866400,0.87814376,854.13,853.05,1.17192253]
[1766245869108,0.87814376,854.13,853.04,1.17192253]
[1766245869306,0.87814376,854.13,853.05,1.17192253]
[1766245870207,0.87814376,854.13,853.04,1.17192253]
[1766245871604,0.87814376,854.13,853.2,0.20380077]
[1766245875108,0.87814376,854.14,853.2,0.20380077]
[1766245879218,0.87814376,854.13,853.2,0.20380077]
[1766245882230,0.87814376,854.13,853.04,1.17192253]
[1766245882418,0.87814376,854.13,853.12,0.20381032]
[1766245883823,0.87814376,854.11,853.12,0.20381032]
[1766245889129,0.87814376,854.1,853.12,0.20381032]
[1766245893129,0.87814376,854.09,853.12,0.20381032]
[1766245895133,0.87725889,854.09,853.12,0.20381032]
[1766245896333,0.87725889,854.08,853.12,0.20381032]
[1766245898438,0.87725889,854.07,853.12,0.20381032]
[1766245900342,0.87725889,854.06,853.12,0.20381032]
[1766245902442,0.87725889,854.05,853.12,0.20381032]
[1766245904345,0.87725889,854.04,853.12,0.20381032]
[1766245905340,0.87725889,854.03,853.12,0.20381032]
[1766245906441,0.87725889,854.01,853.13,1.17192253]
[1766245910249,0.87725889,854.01,853.12,1.37573285]
[1766245911348,0.87725889,854.01,853.13,1.17192253]
[1766245940168,0.87725889,854.0,853.13,1.17192253]
[1766245942181,0.87725889,854.0,853.14,1.17192253]
[1766245960281,0.87725889,854.02,853.15,1.17192253]
[1766245964283,0.87725889,854.03,853.15,1.17192253]
[1766245984305,0.87725889,854.03,853.14,1.17192253]
[1766245996413,0.87725889,854.03,853.15,1.17192253]
[1766246016341,0.87725889,854.02,853.15,1.17192253]
[1766246018343,0.87725889,854.02,853.16,1.17192253]
[1766246028150,1.17224376,854.17,853.16,1.17192253]
[1766246028354,0.87910581,854.02,853.16,1.17192253]
[1766246030853,1.17224376,854.17,853.16,1.17192253]
[1766246031052,0.87910585,854.02,853.16,1.17192253]
[1766246080996,0.87910585,854.03,853.17,1.17192253]
[1766246081298,0.87910585,854.04,853.18,1.17192253]
[1766246082496,0.87910585,854.04,853.17,1.17192253]
[1766246084199,0.87910585,854.05,853.17,1.17192253]
[1766246094211,0.87910585,854.05,853.16,1.17192253]
[1766246098814,1.17224376,854.2,853.16,1.17192253]
[1766246099013,0.87881796,854.05,853.16,1.17192253]
[1766246112525,1.17224376,854.2,853.16,1.17192253]
[1766246112826,0.87879459,854.05,853.16,1.17192253]
[1766246130238,0.87879459,854.05,853.17,1.17192253]
[1766246133241,0.87879459,854.04,853.17,1.17192253]
[1766246140147,0.87879459,854.04,853.18,1.17192253]
[1766246151962,0.87879459,854.03,853.18,1.17192253]
[1766246153159,0.87879459,854.04,853.18,1.17192253]
[1766246156365,0.87879459,854.03,853.18,1.17192253]
[1766246157265,0.87879459,854.04,853.18,1.17192253]
[1766246171271,0.87879459,854.05,853.19,1.17192253]
[1766246172272,0.87879459,854.05,853.18,1.17192253]
[1766246212614,0.87879459,854.07,853.19,1.17192253]
[1766246231228,0.87879459,854.06,853.19,1.17192253]
[1766246232232,0.87879459,854.07,853.19,1.17192253]
[1766246241639,1.17224376,854.22,853.19,1.17192253]
[1766246241640,0.87879459,854.06,853.19,1.17192253]
[1766246245840,0.87879459,854.06,853.17,3.08726764]
[1766246245841,0.87879459,854.2,853.33,1.17192253]
[1766246246338,0.87879459,854.22,853.31,1.17192253]
[1766246247140,0.87879459,854.23,853.3,1.17192253]
[1766246248141,0.87879459,854.24,853.29,1.17192253]
[1766246249247,0.87879459,854.25,853.28,1.17192253]
[1766246250344,0.87879459,854.26,853.27,1.17192253]
[1766246253154,0.87879459,854.27,853.26,1.17192253]
[1766246255253,1.17224376,854.43,853.25,1.17192253]
[1766246255254,0.87879459,854.28,853.25,1.17192253]
[1766246259153,0.87879459,854.29,853.24,1.17192253]
[1766246262354,0.87693694,854.29,853.24,1.17192253]
[1766246265260,0.87693694,854.29,853.23,1.17192253]
[1766246266156,0.87693694,854.3,853.23,1.17192253]
[1766246270465,1.17224376,854.45,853.23,1.17192253]
[1766246270666,0.87678884,854.3,853.23,1.17192253]
[1766246282374,0.20376139,854.48,853.22,0.20376139]
[1766246282375,0.87678884,854.31,853.25,1.17192253]
[1766246289284,0.87678884,854.3,853.26,1.17192253]
[1766246294189,0.87678884,854.3,853.22,0.20376139]
[1766246294190,0.87678884,854.29,853.27,1.17192253]
[1766246297191,0.87678884,854.28,853.28,1.17192253]
[1766246299197,0.87678884,854.27,853.28,1.17192253]
[1766246300202,0.87678884,854.27,853.29,1.17192253]
[1766246301199,0.87678884,854.26,853.29,1.17192253]
[1766246301697,0.87678884,854.25,853.28,1.17192253]
[1766246302299,0.87678884,854.25,853.29,1.17192253]
[1766246303111,0.87678884,854.24,853.3,1.17192253]
[1766246304206,0.87678884,854.24,853.22,0.20376139]
[1766246304207,0.87678884,854.23,853.31,1.17192253]
[1766246305208,0.87678884,854.21,853.33,1.17192253]
[1766246308810,0.87678884,854.23,853.35,1.17192253]
[1766246311206,0.87678884,854.23,853.22,0.20376139]
[1766246311207,0.87678884,854.23,853.34,1.17192253]
[1766246320219,0.87678884,854.24,853.34,1.17192253]
[1766246331732,0.87678884,854.24,853.35,1.17192253]
[1766246345955,0.87678884,854.22,853.33,1.17192253]
[1766246346156,0.87678884,854.21,853.33,1.17192253]
[1766246349255,0.87678884,854.22,853.33,1.17192253]
[1766246351355,0.87678884,854.22,853.32,1.17192253]
[1766246353458,0.87678884,854.25,853.36,1.17192253]
[1766246369268,0.87678884,854.25,853.37,1.17192253]
[1766246369473,0.87678884,854.48,853.59,1.17192253]
[1766246370070,0.87678884,854.49,853.6,1.17192253]
[1766246370573,0.87678884,854.52,853.56,1.17192253]
[1766246371174,0.87678884,854.53,853.56,1.17192253]
[1766246371375,0.87678884,854.54,853.54,1.17192253]
[1766246372275,0.87678884,854.56,853.53,1.17192253]
[1766246373274,0.87678884,854.57,853.52,1.17192253]
[1766246374176,0.87678884,854.57,853.51,1.17192253]
[1766246374376,0.87678884,854.58,853.5,1.17192253]
[1766246375376,0.87678884,854.59,853.5,1.17192253]
[1766246376175,0.87678884,854.59,853.49,1.17192253]
[1766246376476,0.87678884,854.6,853.49,1.17192253]
[1766246377373,0.87678884,854.6,853.48,1.17192253]
[1766246378278,0.87678884,854.61,853.47,1.17192253]
[1766246379375,0.87678884,854.62,853.47,1.17192253]
[1766246380378,0.87678884,854.62,853.46,1.17192253]
[1766246381282,0.87678884,854.63,853.46,1.17192253]
[1766246382281,0.87678884,854.63,853.45,1.17192253]
[1766246383381,1.17224376,854.79,853.45,1.17192253]
[1766246383382,0.87678884,854.64,853.45,1.17192253]
[1766246385180,0.87678884,854.64,853.44,1.17192253]
[1766246386385,0.87678884,854.65,853.44,1.17192253]
[1766246388284,0.87678884,854.65,853.43,1.17192253]
[1766246390191,0.87678884,854.66,853.43,1.17192253]
[1766246392389,0.87678884,854.66,853.42,1.17192253]
[1766246395198,0.01126615,855.43,852.65,2.93055653]
[1766246395493,0.01119363,856.29,851.8,0.0119795]
[1766246395792,0.01421325,857.15,850.95,0.01164376]
[1766246395992,0.01421325,857.15,850.13,0.01141569]
[1766246396693,9.38263708,857.26,850.13,0.01141569]
[1766246398704,9.38263708,857.26,850.36,11.7202111]
[1766246400706,0.00941483,858.01,850.13,0.01141569]
[1766246401010,0.00941483,858.01,849.28,0.1243301]
[1766246401204,9.329975,857.3,851.0,9.296642]
[1766246406513,9.329975,857.58,851.27,9.296642]
[1766246411721,9.329975,857.72,851.3,9.296642]
[1766246416924,9.329975,857.76,851.28,9.296642]
[1766246422226,9.329975,857.77,851.26,9.296642]
[1766246427433,9.329975,857.72,851.26,9.296642]
[1766246432636,9.329975,857.56,851.13,9.296642]
[1766246437934,9.329975,857.47,851.07,9.296642]
[1766246443138,9.329975,857.39,851.01,9.296642]
[1766246448340,9.329975,857.35,850.99,9.296642]
[1766246453546,9.329975,857.33,851.0,9.296642]
[1766246458748,9.329975,857.32,851.01,9.296642]
[1766246463947,0.01435792,858.18,850.96,9.296642]
[1766246463948,9.329975,857.27,850.96,9.296642]
[1766246464746,0.2036791,855.7,852.53,0.2036791]
[1766246664801,0.01271093,856.56,851.68,0.00851797]
[1766246665002,0.20370414,854.91,852.84,0.20370414]
[1766246665298,0.00897571,855.76,852.84,0.20370414]
[1766246665501,0.01208963,856.62,852.84,0.20370414]
[1766246665702,9.329975,856.99,852.84,0.20370414]
[1766246666597,0.20370414,855.96,852.84,0.20370414]
[1766246700132,0.87560113,854.64,853.47,1.16090014]
[1766246701129,1.75120226,854.94,853.47,1.16090014]
[1766246701130,0.87560113,854.63,853.47,1.16090014]
[1766246703337,0.87560113,854.62,853.47,1.16090014]
[1766246705334,0.87560113,854.62,853.48,1.16090014]
[1766246707337,0.87560113,854.61,853.48,1.16090014]
[1766246709340,0.87560113,854.61,853.49,1.16090014]
[1766246711343,0.87560113,854.6,853.49,1.16090014]
[1766246712343,0.87560113,854.6,853.5,1.16090014]
[1766246713440,0.87560113,854.59,853.5,1.16090014]
[1766246714341,0.87560113,854.59,853.51,1.16090014]
[1766246715444,0.87560113,854.58,853.51,1.16090014]
[1766246716544,0.87560113,854.58,853.52,1.16090014]
[1766246717243,0.87560113,854.57,853.53,1.16090014]
[1766246718344,0.87560113,854.56,853.54,1.16090014]
[1766246719444,0.87560113,854.55,853.55,1.16090014]
[1766246720345,0.87560113,854.54,853.55,1.16090014]
[1766246721350,0.87560113,854.54,853.56,1.16090014]
[1766246722351,0.87560113,854.53,853.57,1.16090014]
[1766246725452,0.87560113,854.53,853.58,1.16090014]
[1766246726352,0.87560113,854.52,853.58,1.16090014]
[1766246728349,0.87560113,854.52,853.59,1.16090014]
[1766246729453,0.87560113,854.51,853.59,1.16090014]
[1766246731251,0.87560113,854.51,853.6,1.16090014]
[1766246732355,0.87560113,854.5,853.6,1.16090014]
[1766246740359,0.87560113,854.5,853.61,1.16090014]
[1766246743361,0.87560113,854.49,853.61,1.16090014]
[1766246748368,0.87560113,854.48,853.61,1.16090014]
[1766246751266,0.87560113,854.46,853.58,1.16090014]
[1766246751769,0.87560113,854.45,853.58,1.16090014]
[1766246752267,0.87560113,854.45,853.57,1.16090014]
[1766246752572,0.87560113,854.36,853.48,1.16090014]
[1766246753272,0.87560113,854.36,853.45,1.16090014]
[1766246754368,0.87560113,854.33,853.39,1.16090014]
[1766246755368,0.87560113,854.34,853.37,1.16090014]
[1766246756173,0.87560113,854.35,853.36,1.16090014]
[1766246757173,0.87560113,854.36,853.35,1.16090014]
[1766246758170,0.87560113,854.37,853.34,1.16090014]
[1766246759176,0.87560113,854.38,853.34,1.16090014]
[1766246761074,0.87560113,854.35,853.31,1.16090014]
[1766246761276,0.87560113,854.33,853.27,1.16090014]
[1766246761474,0.8768551,854.33,853.27,1.16090014]
[1766246761875,0.01233072,855.18,852.84,0.20370414]
[1766246761876,0.8768551,854.34,853.29,1.16090014]
[1766246762077,0.8768551,854.37,853.32,1.16090014]
[1766246762281,0.8768551,854.38,853.31,1.16090014]
[1766246764180,0.8768551,854.39,853.3,1.16090014]
[1766246766280,0.8768551,854.39,853.29,1.16090014]
[1766246767384,0.8768551,854.4,853.29,1.16090014]
[1766246770188,0.8768551,854.4,853.28,1.16090014]
[1766246771289,0.8768551,854.41,853.28,1.16090014]
[1766246771685,0.8768551,854.39,853.26,1.16090014]
[1766246775293,0.8768551,854.4,853.26,1.16090014]
[1766246776198,0.8768551,854.4,853.25,1.16090014]
[1766246781396,0.8768551,854.49,853.34,1.16090014]
[1766246782202,0.8768551,854.5,853.34,1.16090014]
[1766246782402,0.8768551,854.49,853.34,1.16090014]
[1766246786197,0.8768551,854.49,853.35,1.16090014]
[1766246789206,0.8768551,854.48,853.35,1.16090014]
[1766246792210,0.8768551,854.48,853.36,1.16090014]
[1766246793410,0.8768551,854.46,853.34,1.16090014]
[1766246793608,0.8768551,854.44,853.32,1.16090014]
[1766246794110,0.8768551,854.44,853.33,1.16090014]
[1766246794407,0.8768551,854.43,853.32,1.16090014]
[1766246795012,0.8768551,854.39,853.28,1.16090014]
[1766246798110,0.8768551,854.39,853.29,1.16090014]
[1766246799215,0.8768551,854.38,853.29,1.16090014]
[1766246802118,0.8768551,854.38,853.3,1.16090014]
[1766246803119,0.8768551,854.37,853.3,1.16090014]
[1766246805019,0.8768551,854.37,853.31,1.16090014]
[1766246806118,0.8768551,854.36,853.31,1.16090014]
[1766246806323,0.8768551,854.36,853.32,1.16090014]
[1766246807825,0.8768551,854.38,853.35,1.16090014]
[1766246809226,0.8768551,854.37,853.36,1.16090014]
[1766246810225,0.8768551,854.37,853.2,1.74135021]
[1766246810226,0.8768551,854.36,853.37,1.16090014]
[1766246811225,0.8768551,854.35,853.38,1.16090014]
[1766246814126,0.8768551,854.35,853.39,1.16090014]
[1766246815624,0.8768551,854.39,853.43,1.16090014]
[1766246816223,1.16746817,854.55,853.43,1.16090014]
[1766246816224,0.8768551,854.4,853.43,1.16090014]
[1766246817125,0.8768551,854.41,853.45,1.16090014]
[1766246817325,0.8768551,854.41,853.44,1.16090014]
[1766246817829,0.8768551,854.42,853.45,1.16090014]
[1766246821733,0.8768551,854.44,853.47,1.16090014]
[1766246822235,0.8768551,854.45,853.47,1.16090014]
[1766246824138,0.8768551,854.45,853.46,1.16090014]
[1766246828139,0.8768551,854.46,853.46,1.16090014]
[1766246830245,0.8768551,854.46,853.45,1.16090014]
[1766246841245,0.8768551,854.46,853.46,1.16090014]
[1766246846263,0.8768551,854.46,853.45,1.16090014]
[1766246852262,0.8768551,854.46,853.44,1.16090014]
[1766246853162,0.8768551,854.46,853.45,1.16090014]
[1766246853363,0.8768551,854.45,853.44,1.16090014]
[1766246858263,0.8768551,854.44,853.44,1.16090014]
[1766246859263,0.8768551,854.44,853.45,1.16090014]
[1766246863268,0.8768551,854.43,853.46,1.16090014]
[1766246866175,0.8768551,854.42,853.46,1.16090014]
[1766246867376,0.8768551,854.42,853.47,1.16090014]
[1766246869278,0.8768551,854.41,853.47,1.16090014]
[1766246870178,0.8768551,854.41,853.48,1.16090014]
[1766246871277,0.8768551,854.4,853.47,1.16090014]
[1766246872278,0.8768551,854.4,853.48,1.16090014]
[1766246873277,0.8768551,854.39,853.48,1.16090014]
[1766246874274,0.8768551,854.39,853.49,1.16090014]
[1766246875181,0.8768551,854.38,853.49,1.16090014]
[1766246897299,0.8768551,854.38,853.48,1.16090014]
[1766246900099,0.8768551,854.38,853.49,1.16090014]
[1766246900704,0.8768551,854.38,853.48,1.16090014]
[1766246901205,0.8768551,854.37,853.49,1.16090014]
[1766246902301,0.8768551,854.38,853.49,1.16090014]
[1766246903203,0.8768551,854.37,853.49,1.16090014]
[1766246925028,0.8768551,854.36,853.49,1.16090014]
[1766246926028,0.8768551,854.36,853.53,1.16090014]
[1766246926230,0.8768551,854.42,853.53,1.16090014]
[1766246928229,0.8768551,854.42,853.52,1.16090014]
[1766246929226,0.8768551,854.43,853.52,1.16090014]
[1766246933234,1.16746817,854.59,853.52,1.16090014]
[1766246933235,0.8768551,854.44,853.52,1.16090014]
[1766246934134,0.8768551,854.44,853.51,1.16090014]
[1766246940637,0.8768551,854.43,853.5,1.16090014]
[1766246941240,0.8768551,854.43,853.34,1.74135021]
[1766246941241,0.8768551,854.42,853.49,1.16090014]
[1766246944136,0.8768551,854.43,853.49,1.16090014]
[1766246948346,0.8768551,854.43,853.5,1.16090014]
[1766246961563,0.8768551,854.46,853.53,1.16090014]
[1766246962462,0.8768551,854.46,853.52,1.16090014]
[1766246977186,0.8768551,854.46,853.53,1.16090014]
[1766246981188,0.8768551,854.45,853.53,1.16090014]
[1766246983392,0.8768551,854.47,853.55,1.16090014]
[1766246985192,0.8768551,854.47,853.56,1.16090014]
[1766246985388,0.8768551,854.47,853.55,1.16090014]
[1766246989101,0.8768551,854.48,853.56,1.16090014]
[1766246992299,0.8768551,854.48,853.55,1.16090014]
[1766246992507,0.8768551,854.48,853.56,1.16090014]
[1766246996301,0.8768551,854.49,853.55,1.16090014]
[1766247001103,0.8768551,854.48,853.55,1.16090014]
[1766247003114,0.8768551,854.49,853.55,1.16090014]
[1766247003309,0.8768551,854.5,853.57,1.16090014]
[1766247009419,0.8768551,854.5,853.56,1.16090014]
[1766247013215,0.8768551,854.5,853.57,1.16090014]
[1766247032432,0.8768551,854.49,853.57,1.16090014]
[1766247037334,0.8768551,854.49,853.58,1.16090014]
[1766247043338,0.8768551,854.48,853.58,1.16090014]
[1766247043744,0.8768551,854.46,853.56,1.16090014]
[1766247050544,0.8768551,854.43,853.53,1.16090014]
[1766247052649,0.2036946,854.75,853.51,1.16090014]
[1766247052650,0.8768551,854.41,853.51,1.16090014]
[1766247053350,0.8768551,854.42,853.5,1.16090014]
[1766247057257,0.8768551,854.43,853.49,1.16090014]
[1766247060360,0.8768551,854.38,853.45,1.16090014]
[1766247060660,0.8768551,854.32,853.38,1.16090014]
[1766247060955,0.8768551,854.31,853.37,1.16090014]
[1766247061155,0.8768551,854.3,853.37,1.16090014]
[1766247061361,0.8768551,854.32,853.35,1.16090014]
[1766247062261,0.8768551,854.33,853.34,1.16090014]
[1766247063462,0.8768551,854.34,853.33,1.16090014]
[1766247065262,0.8768551,854.34,853.17,1.74135021]
[1766247065263,0.8768551,854.35,853.32,1.16090014]
[1766247066263,0.8768551,854.36,853.31,1.16090014]
[1766247068861,0.8768551,854.36,853.3,1.16090014]
[1766247069365,0.8768551,854.37,853.3,1.16090014]
[1766247071266,0.8768551,854.38,853.29,1.16090014]
[1766247073969,0.8768551,854.37,853.28,1.16090014]
[1766247074369,0.8768551,854.38,853.28,1.16090014]
[1766247075068,0.8768551,854.37,853.27,1.16090014]
[1766247076368,0.8768551,854.38,853.26,1.16090014]
[1766247080872,0.8768551,854.38,853.25,1.16090014]
[1766247081269,0.8768551,854.36,853.23,1.16090014]
[1766247082269,0.8768551,854.37,853.23,1.16090014]
[1766247082570,0.8768551,854.28,853.19,0.20373634]
[1766247083372,0.8768551,854.25,853.19,0.20373634]
[1766247085267,1.16746817,854.41,853.19,0.20373634]
[1766247085268,0.8768551,854.26,853.19,0.20373634]
[1766247086273,0.8768551,854.27,853.19,0.20373634]
[1766247088274,0.8768551,854.28,853.19,0.20373634]
[1766247091371,0.8768551,854.29,853.19,0.20373634]
[1766247096273,0.8768551,854.3,853.19,0.20373634]
[1766247096473,0.8768551,854.29,853.19,0.20373634]
[1766247104280,0.8768551,854.28,853.19,0.20373634]
[1766247105080,0.8768551,854.29,853.19,0.20373634]
[1766247105380,0.8768551,854.28,853.19,0.20373634]
[1766247108280,0.8768551,854.27,853.19,0.20373634]
[1766247110277,0.8768551,854.26,853.19,0.20373634]
[1766247113285,0.8768551,854.25,853.19,0.20373634]
[1766247116282,0.8768551,854.24,853.19,0.20373634]
[1766247117287,0.8768551,854.23,853.19,0.20373634]
[1766247119389,0.8768551,854.22,853.19,0.20373634]
[1766247121091,0.8768551,854.21,853.19,0.20373634]
[1766247126494,0.8768551,854.19,853.19,0.20373634]
[1766247130293,0.8768551,854.18,853.19,0.20373634]
[1766247133299,0.8768551,854.17,853.19,0.20373634]
[1766247134799,0.8768551,854.12,853.19,0.20373634]
[1766247137200,0.8768551,854.11,853.19,0.20373634]
[1766247139401,0.8768551,854.1,853.19,0.20373634]
[1766247140301,0.8768551,854.09,853.19,0.20373634]
[1766247142302,0.8768551,854.08,853.19,0.20373634]
[1766247146808,0.8768551,854.08,853.15,1.16090014]
[1766247150406,0.8768551,854.08,853.14,1.16090014]
[1766247151307,0.8768551,854.09,853.14,1.16090014]